bitfinex-derivatives/quotes_BTCF0:USTF0_20251229
["timestamp","ask_amount","ask_price","bid_price","bid_amount"]
[1767029371670,0.0114432,87483.0,87469.0,0.15476]
[1767029371863,0.0114432,87483.0,87470.0,0.01789271]
[1767029372063,0.0611049,87493.0,87471.0,0.01789271]
[1767029372262,0.0114433,87482.0,87469.0,0.15476]
[1767029372464,0.0114433,87482.0,87470.0,0.01789275]
[1767029372674,0.0114418,87493.0,87471.0,0.01789275]
[1767029372876,0.0114418,87493.0,87472.0,0.01789275]
[1767029373067,0.0114418,87493.0,87469.0,0.15476]
[1767029373268,0.0114418,87493.0,87470.0,0.01789274]
[1767029373466,0.0114418,87493.0,87471.0,0.01789274]
[1767029373666,0.0114418,87493.0,87472.0,0.01789274]
[1767029373859,0.0114418,87493.0,87473.0,0.01789274]
[1767029374168,0.0114432,87483.0,87474.0,0.01789274]
[1767029374364,0.0114422,87490.0,87475.0,0.05744]
[1767029374575,0.0114439,87477.0,87476.0,0.09728]
[1767029374770,0.0114423,87489.0,87476.0,0.15472]
[1767029375470,0.0114423,87489.0,87477.0,0.15472]
[1767029375672,0.0114423,87489.0,87478.0,0.05744]
[1767029375863,0.0114435,87480.0,87479.0,0.05744]
[1767029376276,0.0114423,87489.0,87479.0,0.05744]
[1767029376879,0.0114423,87489.0,87468.0,0.00017154]
[1767029376880,0.0114423,87489.0,87478.0,0.05744]
[1767029377272,0.0114423,87489.0,87477.0,0.05744]
[1767029377462,0.0114423,87489.0,87468.0,0.00017154]
[1767029377767,0.0114423,87489.0,87469.0,0.17261284]
[1767029377966,0.0114423,87489.0,87470.0,0.01789284]
[1767029378174,0.0114432,87483.0,87471.0,0.01789284]
[1767029378376,0.0114417,87494.0,87472.0,0.01789284]
[1767029378678,0.0114429,87485.0,87473.0,0.01789284]
[1767029378873,0.0611049,87495.0,87474.0,4e-08]
[1767029379078,0.0114438,87478.0,87474.0,0.00016]
[1767029379372,0.011444,87476.0,87473.0,0.05744]
[1767029379565,0.011444,87476.0,87468.0,0.00017154]
[1767029379766,0.011444,87476.0,87469.0,0.15472]
[1767029380771,0.0114437,87479.0,87469.0,0.15472]
[1767029380971,0.0114433,87482.0,87469.0,0.15472]
[1767029381372,0.0114435,87480.0,87469.0,0.15472]
[1767029382573,0.0611049,87492.0,87469.0,0.15472]
[1767029382972,0.0611049,87486.0,87469.0,0.15472]
[1767029383174,0.09728,87493.0,87469.0,0.15472]
[1767029383574,0.09728,87493.0,87476.0,0.011444]
[1767029383778,0.20739915,87520.0,87480.0,0.0114434]
[1767029383779,0.09728,87500.0,87480.0,0.0114434]
[1767029383979,0.0114413,87497.0,87477.0,0.0688838]
[1767029384480,0.09728,87500.0,87474.0,0.0114442]
[1767029384775,0.0114419,87493.0,87475.0,0.15472]
[1767029384980,0.0114417,87494.0,87475.0,0.15472]
[1767029385477,0.0114415,87496.0,87476.0,0.0114439]
[1767029385677,0.0114413,87497.0,87477.0,0.15472]
[1767029385877,0.0114413,87497.0,87478.0,0.15472]
[1767029386479,0.0114418,87493.0,87478.0,0.15472]
[1767029387180,0.06416117,87507.0,87478.0,0.15472]
[1767029387483,0.0114412,87498.0,87478.0,0.15472]
[1767029387675,0.0113912,87498.0,87478.0,0.15472]
[1767029388073,0.0114408,87501.0,87478.0,0.1661637]
[1767029388269,0.16153245,87510.0,87483.0,0.0114431]
[1767029388484,0.0114409,87501.0,87488.0,0.00017144]
[1767029389276,0.09728,87510.0,87488.0,0.00017144]
[1767029389472,0.0114397,87509.0,87489.0,0.09728]
[1767029389776,0.09728,87519.0,87489.0,0.09728]
[1767029389975,0.0114397,87510.0,87489.0,0.09728]
[1767029390175,0.0114398,87508.0,87488.0,0.00017144]
[1767029390372,0.09728,87519.0,87489.0,0.1352]
[1767029390373,0.0114407,87502.0,87489.0,0.1352]
[1767029390573,0.0114391,87514.0,87488.0,0.00012144]
[1767029390774,0.0114419,87493.0,87488.0,0.00012]
[1767029391081,0.0114419,87493.0,87482.0,0.05744]
[1767029391376,0.0114415,87496.0,87483.0,0.01789009]
[1767029391576,0.0114415,87496.0,87482.0,0.05744]
[1767029391990,0.0001711,87498.0,87482.0,0.05744]
[1767029392376,0.0001711,87498.0,87483.0,0.01783164]
[1767029392578,0.0001711,87498.0,87482.0,0.05744]
[1767029392878,0.0114413,87497.0,87482.0,0.05744]
[1767029393696,0.0114413,87497.0,87483.0,0.01782997]
[1767029393884,0.0114413,87497.0,87484.0,0.01782997]
[1767029394186,0.0114413,87497.0,87485.0,0.01782997]
[1767029394389,0.0114413,87497.0,87486.0,0.01782997]
[1767029394594,0.0001711,87498.0,87487.0,0.01782997]
[1767029394784,0.0001711,87498.0,87488.0,0.01782997]
[1767029395085,0.0001711,87498.0,87489.0,0.01782997]
[1767029395280,0.0001711,87498.0,87490.0,0.01782997]
[1767029395484,0.0001711,87498.0,87482.0,0.05744]
[1767029395682,0.0001711,87498.0,87483.0,0.01782707]
[1767029395877,0.0114401,87507.0,87484.0,0.02926997]
[1767029396078,0.0114401,87507.0,87484.0,0.0114429]
[1767029396275,0.0114401,87507.0,87485.0,0.01782673]
[1767029396482,0.0114401,87507.0,87486.0,0.01782673]
[1767029396683,0.0114401,87507.0,87487.0,0.01782673]
[1767029396987,0.0114401,87507.0,87488.0,0.01782673]
[1767029397188,0.0114401,87507.0,87489.0,0.07526673]
[1767029397382,0.0114407,87502.0,87490.0,0.01782673]
[1767029397585,0.0114407,87502.0,87491.0,0.01782673]
[1767029397781,0.0114407,87502.0,87492.0,0.01782673]
[1767029398089,0.0114407,87502.0,87493.0,0.07526673]
[1767029398284,0.011442,87492.0,87480.0,0.00017144]
[1767029398495,0.0114418,87493.0,87481.0,0.05744]
[1767029400082,0.0114415,87496.0,87481.0,0.05744]
[1767029400281,0.09724,87503.0,87481.0,0.05744]
[1767029400678,0.0114416,87495.0,87481.0,0.05744]
[1767029401186,0.09724,87503.0,87481.0,0.05744]
[1767029401389,0.0114425,87488.0,87480.0,0.00017144]
[1767029401588,0.011442,87492.0,87480.0,0.00017144]
[1767029401791,0.0114423,87490.0,87480.0,0.00017144]
[1767029402196,0.09724,87503.0,87480.0,0.00017144]
[1767029402396,0.09724,87503.0,78283.0,0.04726815]
[1767029402397,0.0114439,87477.0,87466.0,0.09724]
[1767029402595,0.09724,87489.0,87467.0,0.03832]
[1767029402785,0.09724,87498.0,87470.0,0.20735366]
[1767029402982,0.05744,87502.0,87484.0,0.0114428]
[1767029403294,0.09724,87513.0,87484.0,0.00017144]
[1767029403486,0.0114393,87512.0,87491.0,0.0114419]
[1767029403685,0.0114393,87512.0,87492.0,0.05744]
[1767029403886,0.09724,87513.0,87502.0,0.0114405]
[1767029404085,0.15865615,87534.0,87511.0,0.0114393]
[1767029404285,0.15865615,87534.0,87493.0,0.11428767]
[1767029404286,0.09724,87534.0,87493.0,0.11428767]
[1767029404486,0.09724,87534.0,87490.0,0.0114422]
[1767029404487,0.09724,87534.0,87505.0,0.01161154]
[1767029404680,0.0114368,87531.0,87507.0,0.0114398]
[1767029405087,0.0114372,87529.0,87506.0,0.15472]
[1767029405395,0.09724,87534.0,87507.0,0.05748]
[1767029405601,0.09724,87534.0,87507.0,0.15472]
[1767029405788,0.09724,87534.0,87505.0,0.00017144]
[1767029406093,0.09724,87534.0,87506.0,0.15472]
[1767029406094,0.1086765,87534.0,87506.0,0.15472]
[1767029406294,0.1086765,87534.0,87508.0,0.0114398]
[1767029406295,0.0114368,87532.0,87508.0,0.0114398]
[1767029406492,0.0114368,87532.0,87509.0,0.15468]
[1767029406996,0.09724,87534.0,87509.0,0.15468]
[1767029407189,0.0114366,87533.0,87510.0,0.0114395]
[1767029407391,0.05744,87540.0,87509.0,0.15468]
[1767029407587,0.0114359,87539.0,87516.0,0.0114387]
[1767029408092,0.0114358,87540.0,87515.0,0.0114388]
[1767029408395,0.011436,87537.0,87515.0,0.0114388]
[1767029408698,0.1086756,87541.0,87517.0,0.0114385]
[1767029409292,0.09724,87541.0,87514.0,0.011439]
[1767029409484,0.0114362,87536.0,87509.0,0.15468]
[1767029409687,0.0114362,87536.0,87512.0,0.0114392]
[1767029409890,0.0114362,87536.0,87514.0,0.0114389]
[1767029410195,0.05744,87537.0,87509.0,0.15468]
[1767029410390,0.09724,87541.0,87509.0,0.15468]
[1767029410694,0.01371907,87548.0,87524.0,0.0114376]
[1767029410897,0.01371907,87548.0,87527.0,0.00017144]
[1767029411493,0.0114351,87545.0,87527.0,0.00017144]
[1767029411999,0.00228447,87548.0,87527.0,0.00017144]
[1767029413294,0.0114348,87547.0,87527.0,0.00017144]
[1767029413594,0.00228447,87548.0,87527.0,0.00017144]
[1767029413796,0.00228447,87548.0,87493.0,0.0114417]
[1767029413797,0.20735366,87540.0,87517.0,0.00804]
[1767029414098,0.0114364,87535.0,87517.0,0.10528]
[1767029414399,0.0114367,87533.0,87517.0,0.10528]
[1767029414598,0.09724,87542.0,87517.0,0.10528]
[1767029414794,0.0114347,87547.0,87523.0,0.0114379]
[1767029415096,0.00228447,87548.0,87526.0,0.0114374]
[1767029415296,0.00228447,87548.0,87526.0,0.0688774]
[1767029415788,0.00228447,87548.0,87528.0,0.0114371]
[1767029415989,0.00228447,87548.0,87526.0,0.05744]
[1767029416298,0.0114361,87537.0,87527.0,0.15468]
[1767029416596,0.0114352,87544.0,87527.0,0.15468]
[1767029417192,0.00228447,87548.0,87527.0,0.15468]
[1767029417903,0.01371917,87548.0,87527.0,0.15468]
[1767029418097,0.0114354,87542.0,87528.0,0.05744]
[1767029418293,0.0114354,87543.0,87528.0,0.05744]
[1767029418498,0.0114357,87540.0,87528.0,0.05744]
[1767029418893,0.05744,87541.0,87521.0,4e-08]
[1767029419092,0.0114367,87532.0,87521.0,4e-08]
[1767029419296,0.26479366,87540.0,87521.0,4e-08]
[1767029419508,0.05744,87540.0,87521.0,4e-08]
[1767029419689,0.0688757,87540.0,87521.0,4e-08]
[1767029419890,0.0001714,87539.0,87521.0,4e-08]
[1767029420191,0.0001714,87539.0,87521.0,0.05744004]
[1767029420597,0.20714508,87531.0,87521.0,0.05744004]
[1767029420806,0.0114369,87530.0,87521.0,4e-08]
[1767029421006,0.20714508,87531.0,87521.0,4e-08]
[1767029421396,0.0116072,87539.0,87521.0,4e-08]
[1767029421896,0.0001714,87539.0,87521.0,4e-08]
[1767029422106,0.0114364,87535.0,87521.0,4e-08]
[1767029422407,0.0114369,87530.0,87521.0,4e-08]
[1767029422798,0.20714508,87531.0,87521.0,4e-08]
[1767029424498,0.0001714,87539.0,87524.0,0.0114377]
[1767029424705,0.0114361,87537.0,87521.0,4e-08]
[1767029424902,0.0001714,87539.0,87522.0,0.011438]
[1767029425102,0.0116072,87539.0,87521.0,4e-08]
[1767029425801,0.0001714,87539.0,87522.0,0.0114379]
[1767029426305,0.0001714,87539.0,87521.0,0.01143804]
[1767029426603,0.0001714,87539.0,87522.0,0.05744]
[1767029426809,0.0114369,87531.0,87521.0,0.15464004]
[1767029427010,0.0114365,87534.0,87521.0,0.15464004]
[1767029427402,0.0114371,87529.0,87521.0,4e-08]
[1767029427907,0.0114375,87527.0,87521.0,4e-08]
[1767029428109,0.011437,87530.0,87521.0,4e-08]
[1767029429205,0.0114366,87533.0,87521.0,4e-08]
[1767029429406,0.0576114,87539.0,87521.0,4e-08]
[1767029430007,0.011437,87530.0,87521.0,4e-08]
[1767029430510,0.0114372,87528.0,87521.0,4e-08]
[1767029430710,0.0114376,87526.0,87493.0,0.03082834]
[1767029430910,0.0114378,87524.0,87503.0,0.0114405]
[1767029431118,0.0114378,87524.0,87504.0,0.15464]
[1767029431305,0.0114376,87525.0,87504.0,0.15464]
[1767029431709,0.00017144,87523.0,87506.0,0.00017144]
[1767029431907,0.00017144,87523.0,87511.0,0.0114394]
[1767029432209,0.0114367,87532.0,87508.0,0.0114397]
[1767029432412,0.06141615,87538.0,87506.0,0.01161144]
[1767029432413,0.0114372,87529.0,87506.0,0.01161144]
[1767029434007,0.0114368,87532.0,87510.0,0.0114395]
[1767029434208,0.0114363,87535.0,87506.0,0.00017144]
[1767029434510,0.0114366,87533.0,87506.0,0.00017144]
[1767029434712,0.0114366,87533.0,87513.0,0.0114391]
[1767029434912,0.05744,87539.0,87509.0,0.0114396]
[1767029435616,0.05744,87539.0,87506.0,0.00017144]
[1767029435806,0.011436,87538.0,87506.0,0.00017144]
[1767029436007,0.20709802,87520.0,87506.0,0.00017144]
[1767029436408,0.0114381,87522.0,87506.0,0.00017144]
[1767029437909,0.0574,87528.0,87506.0,0.00017144]
[1767029438114,0.0114385,87519.0,87506.0,0.00017144]
[1767029438315,0.0114382,87521.0,87506.0,0.00017144]
[1767029438711,0.0114378,87524.0,87506.0,0.00017144]
[1767029439312,0.0114381,87522.0,87506.0,0.00017144]
[1767029439505,0.0114383,87520.0,87506.0,0.00017144]
[1767029440305,0.0574,87528.0,87506.0,0.00017144]
[1767029440510,0.011439,87515.0,87506.0,0.00017144]
[1767029441010,0.0114375,87526.0,87506.0,0.00017144]
[1767029441606,0.0114392,87513.0,87506.0,0.00017144]
[1767029442009,0.0114392,87513.0,87499.0,0.1546]
[1767029442210,0.0114392,87513.0,87497.0,0.1546]
[1767029442917,0.0114388,87516.0,87497.0,0.1546]
[1767029443117,0.00017144,87515.0,87498.0,0.00017144]
[1767029443317,0.0114391,87514.0,87498.0,0.00017144]
[1767029443519,0.0114394,87512.0,87498.0,0.00017144]
[1767029443719,0.01161044,87515.0,87498.0,0.00017144]
[1767029443915,0.0114392,87513.0,87498.0,0.00017144]
[1767029444920,0.00017144,87515.0,87498.0,0.00017144]
[1767029444921,0.0114394,87512.0,87498.0,0.00017144]
[1767029445107,0.20709802,87510.0,87498.0,0.00017144]
[1767029445314,0.0114408,87501.0,87488.0,0.00228604]
[1767029445513,0.0114412,87498.0,87479.0,0.1546]
[1767029445713,0.1546,87503.0,87479.0,0.1546]
[1767029445915,0.06141615,87523.0,87490.0,0.0114421]
[1767029445916,0.1546,87511.0,87490.0,0.0114421]
[1767029446113,0.0574,87511.0,87489.0,0.1660422]
[1767029446314,0.0114399,87508.0,87491.0,0.00017144]
[1767029446515,0.00013306,87507.0,87491.0,0.00017144]
[1767029449628,0.0114401,87506.0,87491.0,0.00017144]
[1767029450428,0.00013306,87507.0,87491.0,0.00017144]
[1767029451324,0.0114403,87505.0,87491.0,0.00017144]
[1767029451519,0.00013306,87507.0,87491.0,0.00017144]
[1767029451927,0.0114401,87506.0,87491.0,0.00017144]
[1767029452326,0.00013306,87507.0,87491.0,0.00017144]
[1767029452725,0.00013306,87507.0,87491.0,0.01161344]
[1767029453031,0.00013306,87507.0,87491.0,0.00017144]
[1767029454725,0.00013306,87507.0,87493.0,0.0114417]
[1767029455123,0.00013306,87507.0,87491.0,0.00017144]
[1767029455827,0.00013306,87507.0,87492.0,0.0114418]
[1767029456025,0.00017144,87509.0,87492.0,0.0114418]
[1767029456723,0.00017144,87509.0,87499.0,0.2072545]
[1767029456922,0.0574,87511.0,87501.0,0.0114407]
[1767029457118,0.0574,87511.0,87499.0,0.2072545]
[1767029457119,0.0574,87517.0,87503.0,0.0114404]
[1767029457324,0.0574,87517.0,87502.0,0.0114406]
[1767029458122,0.06265734,87533.0,87498.0,0.0574]
[1767029458123,0.09724,87527.0,87507.0,0.2072545]
[1767029458326,0.0114386,87518.0,87500.0,0.3044945]
[1767029458629,0.0574,87529.0,87503.0,0.0114404]
[1767029458630,0.0114381,87522.0,87503.0,0.0114404]
[1767029458823,0.0114384,87520.0,87503.0,0.0114404]
[1767029459021,0.0114383,87520.0,87500.0,0.3159353]
[1767029459217,0.0114386,87518.0,87501.0,0.00017144]
[1767029459620,0.0114382,87521.0,87501.0,0.00017144]
[1767029460023,0.00228526,87518.0,87501.0,0.00017144]
[1767029460229,0.00228526,87518.0,87502.0,0.0114405]
[1767029461024,0.0114387,87517.0,87501.0,0.00017144]
[1767029461225,0.00228526,87518.0,87501.0,0.00017144]
[1767029461927,0.011439,87515.0,87501.0,0.00017144]
[1767029462120,0.00228526,87518.0,87501.0,0.00017144]
[1767029462325,0.15464,87517.0,87489.0,0.0574]
[1767029462522,0.0114388,87516.0,87473.0,0.04110445]
[1767029462830,0.0114414,87497.0,87474.0,0.15464]
[1767029463131,0.0114414,87497.0,87475.0,0.09724]
[1767029463335,0.00017144,87495.0,87478.0,0.0114437]
[1767029463840,0.00017144,87495.0,87477.0,0.00017144]
[1767029467927,0.01161304,87495.0,87477.0,0.00017144]
[1767029468531,0.0114419,87493.0,87477.0,0.00017144]
[1767029469436,0.00017144,87495.0,87477.0,0.00017144]
[1767029470933,0.00017144,87495.0,87452.0,0.06177265]
[1767029470934,0.00017144,87495.0,87457.0,0.04110445]
[1767029471238,0.0114431,87484.0,87461.0,0.0114459]
[1767029471430,0.0114433,87482.0,87458.0,0.0114463]
[1767029471626,0.0114429,87485.0,87460.0,0.011446]
[1767029471937,0.00017144,87481.0,87464.0,0.00017144]
[1767029472727,0.01161494,87481.0,87464.0,0.00017144]
[1767029473327,0.00017144,87481.0,87464.0,0.00017144]
[1767029475939,0.00017144,87481.0,87468.0,0.011445]
[1767029476241,0.00017144,87481.0,87470.0,0.0114447]
[1767029476441,0.00017144,87481.0,87472.0,0.0114444]
[1767029476741,0.15464,87487.0,87469.0,0.0114449]
[1767029477131,0.15464,87487.0,87471.0,0.0114446]
[1767029479941,0.15464,87487.0,87470.0,0.0114447]
[1767029480235,0.0114427,87486.0,87470.0,0.0114447]
[1767029480539,0.15464,87487.0,87472.0,0.0114445]
[1767029481140,0.0114428,87486.0,87469.0,0.0114449]
[1767029481439,0.0114428,87486.0,87471.0,0.0114446]
[1767029481632,0.15464,87487.0,87471.0,0.0114446]
[1767029482149,0.011443,87484.0,87468.0,0.011445]
[1767029482443,0.1660826,87487.0,87470.0,0.0114447]
[1767029483747,0.15464,87487.0,87467.0,0.0114451]
[1767029484041,0.0114438,87478.0,87464.0,0.01161694]
[1767029484246,0.0114441,87476.0,87464.0,0.00017144]
[1767029484543,0.0114437,87479.0,87464.0,0.00017144]
[1767029487239,0.0114433,87482.0,87464.0,0.00017144]
[1767029487548,0.0114431,87483.0,87465.0,0.0114454]
[1767029488838,0.15464,87487.0,87464.0,0.00017144]
[1767029488839,0.0114434,87481.0,87464.0,0.00017144]
[1767029489037,0.011444,87476.0,87456.0,0.1087265]
[1767029489238,0.011444,87476.0,87456.0,0.1661265]
[1767029489439,0.0114436,87480.0,87460.0,0.0114461]
[1767029489640,0.0114431,87484.0,87463.0,0.0114456]
[1767029490151,0.0114431,87484.0,87465.0,0.00017144]
[1767029490843,0.0114432,87483.0,87465.0,0.00017144]
[1767029491250,0.0114429,87485.0,87465.0,0.00017144]
[1767029492343,0.0114427,87486.0,87471.0,0.0114446]
[1767029492544,0.011443,87484.0,87468.0,0.011445]
[1767029492751,0.15464,87487.0,87468.0,0.011445]
[1767029493249,0.0114432,87483.0,87465.0,0.01161674]
[1767029493448,0.0114443,87474.0,87465.0,0.00017144]
[1767029494739,0.15464,87487.0,87465.0,0.00017144]
[1767029494953,0.0114444,87473.0,87465.0,0.00017144]
[1767029495154,0.0114427,87486.0,87465.0,0.00017144]
[1767029495346,0.0114437,87479.0,87465.0,0.00017144]
[1767029496349,0.0114433,87482.0,87465.0,0.00017144]
[1767029496959,0.15464,87487.0,87465.0,0.00017144]
[1767029497153,0.15468,87486.0,87465.0,0.00017144]
[1767029497569,0.15468,87486.0,87466.0,0.09728]
[1767029497859,0.1661227,87486.0,87470.0,0.0114447]
[1767029498046,0.15468,87486.0,87466.0,0.09728]
[1767029498244,0.15468,87486.0,87474.0,0.0114442]
[1767029498753,0.0114429,87485.0,87471.0,0.0114446]
[1767029499151,0.15468,87486.0,87473.0,0.0114443]
[1767029499547,0.15468,87486.0,87475.0,0.0114441]
[1767029499754,0.15468,87486.0,87473.0,0.0114443]
[1767029500156,0.15468,87486.0,87475.0,0.0114441]
[1767029501057,0.15468,87486.0,87466.0,0.09728]
[1767029501058,0.15468,87486.0,87476.0,0.0114439]
[1767029503150,0.15468,87486.0,87472.0,0.0114445]
[1767029503560,0.15468,87486.0,87475.0,0.0114441]
[1767029505354,0.00017144,87488.0,87475.0,0.0114441]
[1767029505556,0.06141615,87509.0,87487.0,0.0114424]
[1767029505852,0.15468,87508.0,87476.0,0.09728]
[1767029506054,0.09728,87507.0,87476.0,0.09728]
[1767029506258,0.09728,87507.0,87485.0,0.0114427]
[1767029506657,0.0114405,87503.0,87487.0,0.01161394]
[1767029506854,0.00017144,87505.0,87489.0,0.0114422]
[1767029507165,0.00017144,87505.0,87491.0,0.011442]
[1767029507557,0.00017144,87505.0,87487.0,0.00017144]
[1767029507558,0.0114404,87504.0,87487.0,0.01161394]
[1767029508554,0.00017144,87505.0,87490.0,0.0114421]
[1767029508755,0.00017144,87505.0,87494.0,0.0114416]
[1767029508956,0.00017144,87505.0,87496.0,0.0114413]
[1767029509463,0.00017144,87505.0,87489.0,0.09724]
[1767029511150,0.00017144,87505.0,87492.0,0.0114418]
[1767029512162,0.00017144,87505.0,87494.0,0.0114416]
[1767029513459,0.00017144,87505.0,87496.0,0.0114413]
[1767029513965,0.00017144,87505.0,87498.0,0.011441]
[1767029514162,4e-08,87509.0,87489.0,0.09724]
[1767029514751,4e-08,87509.0,87497.0,0.0114412]
[1767029516153,0.05968526,87518.0,87489.0,0.09724]
[1767029516358,0.0114391,87514.0,87489.0,0.09724]
[1767029516762,0.0114394,87512.0,87495.0,0.0114414]
[1767029517467,0.011439,87515.0,87497.0,0.0114412]
[1767029520269,0.011439,87515.0,87499.0,0.0114409]
[1767029520470,0.05968526,87518.0,87500.0,0.20718638]
[1767029520669,0.07112386,87518.0,87500.0,0.20718638]
[1767029520859,0.0114388,87516.0,87500.0,0.20718638]
[1767029521265,0.05968526,87518.0,87500.0,0.20718638]
[1767029522269,0.05968526,87518.0,87499.0,0.011441]
[1767029522270,0.0114361,87537.0,87508.0,0.20718638]
[1767029522461,0.00228447,87548.0,87520.0,0.20718638]
[1767029522462,0.1546,87536.0,87520.0,0.20718638]
[1767029522658,0.00228447,87548.0,87526.0,0.20718638]
[1767029522864,0.09724,87547.0,87530.0,0.20718638]
[1767029523168,0.1546,87547.0,87531.0,0.0114368]
[1767029523965,0.1546,87547.0,87537.0,0.20718638]
[1767029524169,0.0574,87553.0,87538.0,0.0114358]
[1767029524368,0.0574,87554.0,87545.0,0.0114349]
[1767029524564,0.0574,87559.0,87544.0,0.20718638]
[1767029524763,0.0574,87559.0,87549.0,0.20718638]
[1767029524764,0.05735,87559.0,87549.0,0.20718638]
[1767029525165,0.0114322,87567.0,87549.0,0.20718638]
[1767029525466,0.0574,87566.0,87549.0,0.20718638]
[1767029525673,0.0574,87566.0,87550.0,0.0114343]
[1767029525866,0.06471398,87578.0,87557.0,0.0114334]
[1767029525867,0.00228369,87578.0,87557.0,0.0114334]
[1767029526072,0.0574,87574.0,87560.0,0.20718638]
[1767029526367,0.09724,87576.0,87564.0,0.20718638]
[1767029526574,0.00228369,87578.0,87568.0,0.0114319]
[1767029526870,0.00228369,87578.0,87561.0,0.00017133]
[1767029527168,0.00228369,87578.0,87551.0,0.09724]
[1767029527360,0.011431,87576.0,87552.0,0.0574]
[1767029527566,0.0114314,87573.0,87552.0,0.0574]
[1767029527766,0.011432,87569.0,87552.0,0.0574]
[1767029528070,0.0114315,87573.0,87552.0,0.0574]
[1767029528267,0.000171,87571.0,87554.0,0.00017133]
[1767029528471,0.0574,87570.0,87554.0,0.00017133]
[1767029528673,0.0114319,87569.0,87554.0,0.00017133]
[1767029528864,0.0574,87570.0,87554.0,0.00017133]
[1767029529265,0.0114323,87566.0,87554.0,0.00017133]
[1767029529974,0.0574,87570.0,87554.0,0.00017133]
[1767029530675,0.0574,87570.0,87555.0,0.0114336]
[1767029530869,0.000171,87571.0,87554.0,0.00017133]
[1767029531064,0.0114322,87567.0,87554.0,0.00017133]
[1767029531974,0.000171,87571.0,87554.0,0.00017133]
[1767029532170,0.0114318,87570.0,87554.0,0.00017133]
[1767029532376,0.000171,87571.0,87554.0,0.00017133]
[1767029532564,0.0114324,87565.0,87544.0,0.0114]
[1767029532764,0.0114328,87562.0,87544.0,0.0114]
[1767029533071,0.0688324,87566.0,87544.0,0.0114]
[1767029533274,0.0114327,87563.0,87544.0,0.0114]
[1767029533476,0.0114327,87563.0,87545.0,0.00017133]
[1767029534277,0.0574,87566.0,87545.0,0.00017133]
[1767029534574,0.0574,87566.0,87549.0,0.0114344]
[1767029534761,0.0574,87566.0,87552.0,0.011434]
[1767029535671,0.0574,87566.0,87548.0,0.0114345]
[1767029536476,0.0574,87566.0,87551.0,0.0114342]
[1767029537278,0.0574,87566.0,87548.0,0.0114346]
[1767029537574,0.0574,87566.0,87554.0,0.0114337]
[1767029537776,0.00228369,87578.0,87568.0,0.0114319]
[1767029537974,0.00228369,87578.0,87552.0,0.011434]
[1767029538166,0.00228369,87578.0,87554.0,0.0114337]
[1767029538370,0.00228369,87578.0,87556.0,0.0114335]
[1767029538571,0.00228369,87578.0,87558.0,0.0114333]
[1767029538773,0.00017133,87577.0,87559.0,0.00017133]
[1767029539082,0.00017133,87577.0,87568.0,0.011432]
[1767029539279,0.00017133,87577.0,87565.0,0.0114323]
[1767029539478,0.00017133,87577.0,87559.0,0.00017133]
[1767029539979,0.00017133,87577.0,87560.0,0.20685419]
[1767029540185,0.05736,87584.0,87575.0,0.011431]
[1767029540476,0.05736,87584.0,87560.0,0.20685419]
[1767029540682,0.05736,87584.0,87562.0,0.0114327]
[1767029540882,0.05736,87584.0,87573.0,0.0114313]
[1767029541085,0.0114269,87607.0,87563.0,0.15456]
[1767029541086,0.05736,87587.0,87570.0,0.00017133]
[1767029541286,0.05736,87587.0,87576.0,0.0114308]
[1767029544187,0.05736,87587.0,87572.0,0.0114314]
[1767029544385,0.05736,87587.0,87570.0,0.00017133]
[1767029544386,0.0114297,87586.0,87570.0,0.00017133]
[1767029544579,0.01143,87584.0,87570.0,0.00017133]
[1767029544887,0.05736,87587.0,87570.0,0.00017133]
[1767029545080,0.01143,87584.0,87538.0,0.0114358]
[1767029545280,0.0114306,87579.0,87539.0,0.09716]
[1767029545481,0.011432,87568.0,87549.0,0.0114343]
[1767029545682,0.011432,87568.0,87551.0,0.0114341]
[1767029545879,0.011432,87568.0,87551.0,0.1085941]
[1767029546080,0.011432,87568.0,87551.0,0.10876543]
[1767029546385,0.0114323,87566.0,87551.0,0.09733133]
[1767029546777,0.00017133,87568.0,87551.0,0.09733133]
[1767029546987,0.00017133,87568.0,87552.0,0.011434]
[1767029547186,0.00017133,87568.0,87551.0,0.09733133]
[1767029547490,0.0114322,87567.0,87551.0,0.09733133]
[1767029547987,0.00017133,87568.0,87552.0,0.011434]
[1767029548191,0.00017133,87568.0,87555.0,0.0114336]
[1767029548385,0.00017133,87568.0,87551.0,0.09733133]
[1767029548579,0.00017133,87568.0,87560.0,0.0114329]
[1767029548784,0.15452,87578.0,87560.0,0.0114329]
[1767029548980,0.0114303,87582.0,87563.0,0.0114325]
[1767029549290,0.06141615,87593.0,87560.0,0.011433]
[1767029549491,0.0114298,87585.0,87566.0,0.0114321]
[1767029549792,0.0114302,87582.0,87567.0,0.00017133]
[1767029549990,0.09716,87581.0,87567.0,0.00017133]
[1767029551674,0.05736,87584.0,87567.0,0.00017133]
[1767029551675,0.09716,87584.0,87567.0,0.00017133]
[1767029551882,0.05736,87583.0,87567.0,0.00017133]
[1767029552080,0.05736,87583.0,87569.0,0.0114317]
[1767029554989,0.05736,87583.0,87567.0,0.00017133]
[1767029555490,0.0114312,87575.0,87567.0,0.00017133]
[1767029555681,0.05736,87583.0,87556.0,0.0687935]
[1767029555881,0.0114312,87575.0,87558.0,0.0114332]
[1767029556082,0.0114303,87581.0,87562.0,0.0114327]
[1767029556284,0.0114303,87581.0,87564.0,0.0114324]
[1767029556681,0.05736,87583.0,87566.0,0.0114322]
[1767029556882,0.00017133,87578.0,87568.0,0.0114319]
[1767029557092,0.00017133,87578.0,87564.0,0.0114324]
[1767029557292,0.00017133,87578.0,87560.0,0.00017133]
[1767029558993,0.00017133,87578.0,87561.0,0.0114329]
[1767029559489,0.00017133,87578.0,87563.0,0.0114325]
[1767029560197,0.00017133,87578.0,87569.0,0.0114318]
[1767029560982,3e-08,87578.0,87560.0,0.00017133]
[1767029561183,3e-08,87578.0,87573.0,0.0114312]
[1767029561398,3e-08,87578.0,87560.0,0.20702552]
[1767029561399,3e-08,87578.0,87569.0,0.0114318]
[1767029561589,3e-08,87578.0,87560.0,0.00017133]
[1767029561790,3e-08,87578.0,87566.0,0.0114322]
[1767029561990,3e-08,87578.0,87567.0,0.01781601]
[1767029562185,3e-08,87578.0,87568.0,0.01781601]
[1767029562393,3e-08,87578.0,87569.0,0.01781601]
[1767029562592,3e-08,87578.0,87570.0,0.01781601]
[1767029562903,3e-08,87578.0,87560.0,0.00017133]
[1767029563096,3e-08,87578.0,87571.0,0.0114315]
[1767029564900,3e-08,87578.0,87560.0,0.00017133]
[1767029565098,3e-08,87578.0,87569.0,0.0114318]
[1767029565396,3e-08,87578.0,87560.0,0.00017133]
[1767029565697,0.0114313,87574.0,87560.0,0.00017133]